[Event "2nd Serbian League-Vojvodina 2023"]
[Site "Novi Sad"]
[Date "2023.11.03"]
[Round "2.7"]
[White "Balla, Tamas-Kristof"]
[Black "Georgiev, Krum"]
[Result "1/2-1/2"]
[ECO "E81"]
[WhiteElo "2308"]
[BlackElo "2294"]
[Annotator "RC"]
[PlyCount "34"]
[EventDate "2023.10.22"]
[EventType "team-tourn"]
[EventCountry "SRB"]
[SourceTitle "playchess.com"]
[Source "ChessBase"]
[SourceQuality "1"]
[TimeControl "40/5400+30:1800+30"]

1. d4 {[%emt 0:01:36]} Nf6 {[%emt 0:00:11]} 2. c4 {[%emt 0:00:14]} g6 {[%emt 0:00:12]} 3. Nc3 {[%emt 0:00:08]} Bg7 {[%emt 0:00:11]} 4. e4 {[%emt 0:00:07]} d6 {[%emt 0:00:11]} 5. f3 {[%emt 0:00:26]} O-O {[%emt 0:00:24]} 6. Be3 {[%emt 0:00:10]} a6 {[%emt 0:01:27]} 7. Qd2 {[%emt 0:04:47]} c6 {[%emt 0:00:27]} 8. a4 {[%emt 0:01:02]} a5 {[%emt 0:00:47]} 9. Rd1 {[%emt 0:02:11]} Na6 {[%emt 0:01:20]} 10. Bd3 {[%emt 0:00:24]} Nd7 {[%emt 0:01:01]} 11. Nge2 {[%emt 0:02:08]} e5 {[%emt 0:12:45]} 12. O-O {[%emt 0:03:46]} Re8 {[%emt 0:02:23]} 13. Bb1 {[%emt 0:04:08]} exd4 {[%emt 0:13:55]} 14. Nxd4 {[%emt 0:06:07]} Nac5 {[%emt 0:00:20]} 15. Bc2 {[%emt 0:04:09]} Qb6 {[%emt 0:04:32]} 16. b3 {[%emt 0:07:59]} Qb4 {[%emt 0:09:03]} 17. Nce2 {[%emt 0:14:08]} Qxd2 {[%emt 0:07:45]} 1/2-1/2

[Event "2nd Serbian League-Vojvodina 2023"]
[Site "Novi Sad"]
[Date "2023.11.03"]
[Round "2.8"]
[White "Indjic, Dusan"]
[Black "Pletl, Akos"]
[Result "1-0"]
[ECO "C01"]
[WhiteElo "2304"]
[BlackElo "2155"]
[Annotator "RC"]
[PlyCount "99"]
[EventDate "2023.10.22"]
[EventType "team-tourn"]
[EventCountry "SRB"]
[SourceTitle "playchess.com"]
[Source "ChessBase"]
[SourceQuality "1"]
[TimeControl "40/5400+30:1800+30"]

1. d4 {[%emt 0:00:07]} d5 {[%emt 0:00:10]} 2. c4 {[%emt 0:00:27]} c6 {[%emt 0:00:07]} 3. Nc3 {[%emt 0:01:24]} e5 {[%emt 0:00:20]} 4. e3 {[%emt 0:03:51]} exd4 {[%emt 0:02:48]} 5. exd4 {[%emt 0:00:08]} Nf6 {[%emt 0:00:25]} 6. Nf3 {[%emt 0:00:50]} Be6 {[%emt 0:03:38]} 7. Qb3 {[%emt 0:03:47]} Qb6 {[%emt 0:01:04]} 8. c5 {[%emt 0:00:44]} Qc7 {[%emt 0:05:14]} 9. Bf4 {[%emt 0:04:05]} Qc8 {[%emt 0:04:17]} 10. Bd3 {[%emt 0:03:44]} h6 {[%emt 0:02:04]} 11. O-O {[%emt 0:01:59]} Be7 {[%emt 0:02:33]} 12. Qc2 {[%emt 0:13:13]} O-O {[%emt 0:04:00]} 13. b4 {[%emt 0:03:08]} Nh5 {[%emt 0:05:29]} 14. Bd2 {[%emt 0:11:19]} b6 {[%emt 0:21:03]} 15. Rfe1 {[%emt 0:06:55]} Nf6 {[%emt 0:13:59]} 16. Ne5 {[%emt 0:05:01]} bxc5 {[%emt 0:02:19]} 17. bxc5 {[%emt 0:00:36]} Nbd7 {[%emt 0:06:44]} 18. Ng6 {[%emt 0:14:55]} fxg6 {[%emt 0:05:32]} 19. Rxe6 {[%emt 0:00:53]} Bd8 {[%emt 0:00:05]} 20. Re2 {[%emt 0:10:09]} g5 {[%emt 0:00:34]} 21. Rae1 {[%emt 0:00:55]} Qc7 {[%emt 0:03:56]} 22. g3 {[%emt 0:00:52]} Rb8 {[%emt 0:01:33]} 23. Bf5 {[%emt 0:01:27]} Kh8 {[%emt 0:00:54]} 24. Re6 {[%emt 0:00:25]} Rb7 {[%emt 0:01:26]} 25. f4 {[%emt 0:01:16]} g4 {[%emt 0:00:29]} 26. Bg6 {[%emt 0:00:34]} Qc8 {[%emt 0:01:40]} 27. f5 {[%emt 0:00:26]} Ba5 {[%emt 0:02:19]} 28. R1e2 {[%emt 0:01:36]} Bxc3 {[%emt 0:01:14]} 29. Bxc3 {[%emt 0:00:33]} Ne4 {[%emt 0:00:09]} 30. R2xe4 {[%emt 0:00:40]} dxe4 {[%emt 0:00:08]} 31. Qxe4 {[%emt 0:00:08]} Qb8 {[%emt 0:02:09]} 32. Qxg4 {[%emt 0:00:39]} Rb1+ {[%emt 0:00:17]} 33. Kg2 {[%emt 0:00:21]} Nf6 {[%emt 0:00:21]} 34. Qf3 {[%emt 0:02:10]} Nd5 {[%emt 0:00:44]} 35. Rxc6 {[%emt 0:00:27]} Qb5 {[%emt 0:00:19]} 36. Re6 {[%emt 0:01:12]} Nxc3 {[%emt 0:00:08]} 37. f6 {[%emt 0:00:22]} Rb2+ {[%emt 0:00:26]} 38. Kh3 {[%emt 0:00:04]} Qd7 {[%emt 0:00:20]} 39. fxg7+ {[%emt 0:02:48]} Qxg7 {[%emt 0:02:12]} 40. Qxc3 {[%emt 0:00:09]} Rbf2 {[%emt 0:00:30]} 41. Qe3 {[%emt 0:30:31]} R2f6 {[%emt 0:30:41]} 42. Rxf6 {[%emt 0:00:39]} Rxf6 {[%emt 0:00:06]} 43. Qe8+ {[%emt 0:01:17]} Rf8 {[%emt 0:00:07]} 44. Qe4 {[%emt 0:00:32]} Rd8 {[%emt 0:00:52]} 45. Bf5 {[%emt 0:01:40]} Rxd4 {[%emt 0:02:05]} 46. Qe8+ {[%emt 0:00:18]} Qg8 {[%emt 0:00:06]} 47. Qe5+ {[%emt 0:00:20]} Qg7 {[%emt 0:00:09]} 48. Qe8+ {[%emt 0:00:25]} Qg8 {[%emt 0:00:06]} 49. Qxg8+ {[%emt 0:00:21]} Kxg8 {[%emt 0:00:06]} 50. c6 {[%emt 0:00:08]} 1-0

[Event "2nd Serbian League-Vojvodina 2023"]
[Site "Novi Sad"]
[Date "2023.11.03"]
[Round "2.9"]
[White "Nagy, Attila N"]
[Black "Mijatovic, Dusan"]
[Result "0-1"]
[ECO "D38"]
[WhiteElo "2164"]
[BlackElo "2139"]
[Annotator "RC"]
[PlyCount "60"]
[EventDate "2023.10.22"]
[EventType "team-tourn"]
[EventCountry "SRB"]
[SourceTitle "playchess.com"]
[Source "ChessBase"]
[SourceQuality "1"]
[TimeControl "40/5400+30:1800+30"]

1. Nf3 {[%emt 0:00:29]} d5 {[%emt 0:00:09]} 2. d4 {[%emt 0:00:49]} Nf6 {[%emt 0:00:09]} 3. c4 {[%emt 0:00:19]} e6 {[%emt 0:00:09]} 4. Nc3 {[%emt 0:00:37]} Bb4 {[%emt 0:00:14]} 5. Qa4+ {[%emt 0:00:45]} Nc6 {[%emt 0:00:33]} 6. e3 {[%emt 0:00:23]} O-O {[%emt 0:00:06]} 7. Bd2 {[%emt 0:00:17]} dxc4 {[%emt 0:00:22]} 8. Bxc4 {[%emt 0:00:15]} a6 {[%emt 0:00:09]} 9. Qc2 {[%emt 0:00:38]} Bd6 {[%emt 1:33:09]} 10. O-O {[%emt 0:27:56]} b5 {[%emt 0:00:30]} 11. Be2 {[%emt 0:01:44]} Bb7 {[%emt 0:00:00]} 12. a3 {[%emt 0:03:41]} e5 {[%emt 0:00:00]} 13. dxe5 {[%emt 0:12:52]} Nxe5 {[%emt 0:00:00]} 14. Nxe5 {[%emt 0:00:10]} Bxe5 {[%emt 0:00:00]} 15. f4 {[%emt 0:47:05]} Bd6 {[%emt 0:00:00]} 16. Bf3 {[%emt 0:00:30]} Bxf3 {[%emt 0:00:00]} 17. Rxf3 {[%emt 0:00:00]} c5 {[%emt 0:03:30]} 18. e4 {[%emt 0:01:00]} c4 {[%emt 0:00:00]} 19. e5 {[%emt 0:00:00]} Bc5+ {[%emt 0:00:00]} 20. Kh1 {[%emt 0:01:00]} Nd7 {[%emt 0:00:00]} 21. Ne4 {[%emt 0:00:00]} Be7 {[%emt 0:00:00]} 22. Rh3 {[%emt 0:01:00]} g6 {[%emt 0:00:00]} 23. Rd1 {[%emt 0:00:00]} f5 {[%emt 0:00:00]} 24. exf6 {[%emt 0:00:00]} Nxf6 {[%emt 0:00:00]} 25. Ng5 {[%emt 0:01:30]} Qb6 {[%emt 0:00:00]} 26. Re1 {[%emt 0:00:30]} Ng4 {[%emt 0:00:00]} 27. Ne4 {[%emt 0:00:00]} Rae8 {[%emt 0:00:00]} 28. Rg3 {[%emt 0:00:00]} Bh4 {[%emt 0:00:00]} 29. Rxg4 {[%emt 0:00:00]} Bxe1 {[%emt 0:00:00]} 30. Bxe1 {[%emt 0:00:00]} Qe3 {[%emt 0:06:30]} 0-1

[Event "2nd Serbian League-Vojvodina 2023"]
[Site "Novi Sad"]
[Date "2023.11.03"]
[Round "2.10"]
[White "Mijatovic, Dejan"]
[Black "Gusev, Mikhail"]
[Result "1/2-1/2"]
[ECO "B13"]
[WhiteElo "2185"]
[BlackElo "2012"]
[Annotator "RC"]
[PlyCount "42"]
[EventDate "2023.10.22"]
[EventType "team-tourn"]
[EventCountry "SRB"]
[SourceTitle "playchess.com"]
[Source "ChessBase"]
[SourceQuality "1"]
[TimeControl "40/5400+30:1800+30"]

1. d4 {[%emt 0:00:04]} Nf6 {[%emt 0:00:06]} 2. c4 {[%emt 0:00:11]} c5 {[%emt 0:00:22]} 3. e3 {[%emt 0:00:24]} cxd4 {[%emt 0:00:42]} 4. exd4 {[%emt 0:00:07]} d5 {[%emt 0:00:08]} 5. Nc3 {[%emt 0:03:26]} Nc6 {[%emt 0:02:26]} 6. cxd5 {[%emt 0:27:39]} Nxd5 {[%emt 0:00:24]} 7. Nf3 {[%emt 0:01:03]} Bg4 {[%emt 0:05:16]} 8. Bc4 {[%emt 0:01:11]} e6 {[%emt 0:03:15]} 9. O-O {[%emt 0:09:07]} Be7 {[%emt 0:05:46]} 10. Bxd5 {[%emt 0:06:09]} exd5 {[%emt 0:00:03]} 11. Qd3 {[%emt 0:00:29]} Bxf3 {[%emt 0:01:58]} 12. Qxf3 {[%emt 0:01:24]} Nxd4 {[%emt 0:00:08]} 13. Qd3 {[%emt 0:06:20]} Bf6 {[%emt 0:10:08]} 14. Re1+ {[%emt 0:02:53]} Ne6 {[%emt 0:00:31]} 15. Nxd5 {[%emt 0:00:42]} O-O {[%emt 0:00:22]} 16. Nxf6+ {[%emt 0:10:55]} Qxf6 {[%emt 0:00:19]} 17. Qb1 {[%emt 0:07:05]} Rac8 {[%emt 0:05:51]} 18. Bd2 {[%emt 0:01:12]} Rfd8 {[%emt 0:03:35]} 19. Bc3 {[%emt 0:00:23]} Qg5 {[%emt 0:00:41]} 20. Re5 {[%emt 0:01:08]} Qg6 {[%emt 0:03:01]} 21. Qxg6 {[%emt 0:04:01]} hxg6 {[%emt 0:00:06]} 1/2-1/2

[Event "2nd Serbian League-Vojvodina 2023"]
[Site "Novi Sad"]
[Date "2023.11.03"]
[Round "2.11"]
[White "Levitan, Judah Nathan"]
[Black "Rosic, Slavko S"]
[Result "0-1"]
[ECO "B88"]
[WhiteElo "1937"]
[BlackElo "2212"]
[Annotator "RC"]
[PlyCount "72"]
[EventDate "2023.10.22"]
[EventType "team-tourn"]
[EventCountry "SRB"]
[SourceTitle "playchess.com"]
[Source "ChessBase"]
[SourceQuality "1"]
[TimeControl "40/5400+30:1800+30"]

1. e4 {[%emt 0:00:02]} c5 {[%emt 0:00:09]} 2. Nf3 {[%emt 0:00:03]} e6 {[%emt 0:00:09]} 3. d4 {[%emt 0:00:03]} cxd4 {[%emt 0:00:05]} 4. Nxd4 {[%emt 0:00:03]} Nf6 {[%emt 0:03:16]} 5. Nc3 {[%emt 0:00:46]} d6 {[%emt 0:07:33]} 6. Bc4 {[%emt 0:04:24]} a6 {[%emt 0:00:13]} 7. Bb3 {[%emt 0:00:08]} Nc6 {[%emt 0:08:28]} 8. Be3 {[%emt 0:01:18]} Nxd4 {[%emt 0:01:51]} 9. Qxd4 {[%emt 0:03:17]} Qc7 {[%emt 0:01:02]} 10. O-O-O {[%emt 0:01:37]} b5 {[%emt 0:00:55]} 11. f4 {[%emt 0:04:44]} Bb7 {[%emt 0:01:59]} 12. Rhe1 {[%emt 0:06:10]} Be7 {[%emt 0:07:51]} 13. h3 {[%emt 0:03:09]} O-O {[%emt 0:07:41]} 14. g4 {[%emt 0:12:04]} Qc6 {[%emt 0:12:47]} 15. Bf2 {[%emt 0:09:21]} a5 {[%emt 0:11:03]} 16. a3 {[%emt 0:04:00]} a4 {[%emt 0:05:53]} 17. Ba2 {[%emt 0:00:16]} Rfe8 {[%emt 0:10:55]} 18. Bh4 {[%emt 0:05:09]} Nxe4 {[%emt 0:01:50]} 19. Rxe4 {[%emt 0:07:06]} Bxh4 {[%emt 0:00:10]} 20. g5 {[%emt 0:00:22]} Qc5 {[%emt 0:02:19]} 21. Re2 {[%emt 0:01:21]} Bf3 {[%emt 0:00:39]} 22. Qd2 {[%emt 0:03:34]} d5 {[%emt 0:00:58]} 23. Rf1 {[%emt 0:01:21]} Bxe2 {[%emt 0:01:04]} 24. Qxe2 {[%emt 0:00:08]} b4 {[%emt 0:01:38]} 25. axb4 {[%emt 0:05:43]} Qxb4 {[%emt 0:00:06]} 26. Nd1 {[%emt 0:01:31]} a3 {[%emt 0:00:30]} 27. b3 {[%emt 0:00:09]} Rec8 {[%emt 0:00:32]} 28. Kb1 {[%emt 0:04:33]} g6 {[%emt 0:03:21]} 29. Qe3 {[%emt 0:06:11]} d4 {[%emt 0:01:04]} 30. Qe4 {[%emt 0:00:44]} Qc5 {[%emt 0:00:29]} 31. Rf3 {[%emt 0:02:34]} Be1 {[%emt 0:00:40]} 32. h4 {[%emt 0:01:18]} Qf5 {[%emt 0:00:28]} 33. Qe2 {[%emt 0:00:24]} Bxh4 {[%emt 0:01:35]} 34. Qh2 {[%emt 0:00:54]} Bxg5 {[%emt 0:00:24]} 35. Qg2 {[%emt 0:01:24]} Bxf4 {[%emt 0:00:13]} 36. Qf2 {[%emt 0:00:26]} e5 {[%emt 0:00:46]} 0-1

[Event "2nd Serbian League-Vojvodina 2023"]
[Site "Novi Sad"]
[Date "2023.11.03"]
[Round "2.12"]
[White "Bojkovic, Slobodan"]
[Black "Molnar Gabor, Roland"]
[Result "1-0"]
[ECO "D00"]
[WhiteElo "2031"]
[BlackElo "2041"]
[Annotator "NA RC"]
[PlyCount "63"]
[EventDate "2023.10.22"]
[EventType "team-tourn"]
[EventCountry "SRB"]
[SourceTitle "playchess.com"]
[Source "ChessBase"]
[SourceQuality "1"]
[TimeControl "40/5400+30:1800+30"]

1. d4 {[%emt 0:00:09]} d5 {[%emt 0:00:25]} 2. Nc3 {[%emt 0:00:38]} c5 {[%emt 0:00:18]} 3. e4 {[%emt 0:01:25]} dxe4 {[%emt 0:01:01]} 4. d5 {[%emt 0:00:01]} Nf6 {[%emt 0:01:42]} 5. Bg5 {[%emt 0:04:32]} Bg4 {[%emt 0:13:38]} 6. Qd2 {[%emt 0:00:53]} h6 {[%emt 0:18:25]} 7. Bxf6 {[%emt 0:00:35]} gxf6 {[%emt 0:05:09]} 8. Nxe4 {[%emt 0:00:49]} Qb6 {[%emt 0:02:44]} 9. c4 {[%emt 0:02:50]} Na6 {[%emt 0:11:57]} 10. f3 {[%emt 0:10:04]} Bd7 {[%emt 0:01:37]} 11. Ne2 {[%emt 0:04:27]} f5 {[%emt 0:02:36]} 12. N4c3 {[%emt 0:00:42]} O-O-O {[%emt 0:02:09]} 13. g3 {[%emt 0:06:03]} h5 {[%emt 0:02:15]} 14. h4 {[%emt 0:00:14]} f4 {[%emt 0:08:49]} 15. gxf4 {[%emt 0:04:16]} Bh6 {[%emt 0:07:25]} 16. O-O-O {[%emt 0:02:28]} Rhg8 {[%emt 0:01:20]} 17. Ne4 {[%emt 0:06:41]} e5 {[%emt 0:05:42]} 18. Ng5 {[%emt 0:00:58]} Qg6 {[%emt 0:06:45]} 19. fxe5 {[%emt 0:04:06]} Nb4 {[%emt 0:01:07]} 20. b3 {[%emt 0:00:13]} f6 {[%emt 0:00:27]} 21. a3 {[%emt 0:02:20]} fxg5 {[%emt 0:04:03]} 22. axb4 {[%emt 0:00:13]} Bf5 {[%emt 0:01:09]} 23. hxg5 {[%emt 0:00:29]} Bxg5 {[%emt 0:00:33]} 24. f4 {[%emt 0:00:10]} Be7 {[%emt 0:00:32]} 25. d6 {[%emt 0:01:42]} cxb4 {[%emt 0:00:38]} 26. Nd4 {[%emt 0:00:54]} Be4 {[%emt 0:00:30]} 27. Bh3+ {[%emt 0:00:38]} Kb8 {[%emt 0:00:19]} 28. dxe7 {[%emt 0:00:10]} Bxh1 {[%emt 0:00:39]} 29. exd8=Q+ {[%emt 0:00:17]} Rxd8 {[%emt 0:00:06]} 30. Nc6+ {[%emt 0:00:16]} bxc6 {[%emt 0:00:28]} 31. Qxd8+ {[%emt 0:00:12]} Kb7 {[%emt 0:00:03]} 32. Bc8+ {[%emt 0:47:05]} 1-0

[Event "2nd Serbian League-Vojvodina 2023"]
[Site "Novi Sad"]
[Date "2023.11.03"]
[Round "2.13"]
[White "Agdelen, Huseyin Can"]
[Black "Benkovic, Petar"]
[Result "1/2-1/2"]
[ECO "B41"]
[WhiteElo "2401"]
[BlackElo "2361"]
[Annotator "RC"]
[PlyCount "147"]
[EventDate "2023.10.22"]
[EventType "team-tourn"]
[EventCountry "SRB"]
[SourceTitle "playchess.com"]
[Source "ChessBase"]
[SourceQuality "1"]
[TimeControl "40/5400+30:1800+30"]

1. e4 {[%emt 1:31:00]} c5 {[%emt 1:31:00]} 2. Nf3 {[%emt 0:00:30]} e6 {[%emt 0:00:30]} 3. d4 {[%emt 0:00:30]} cxd4 {[%emt 0:00:30]} 4. Nxd4 {[%emt 0:00:30]} a6 {[%emt 0:00:30]} 5. c4 {[%emt 0:00:30]} b6 {[%emt 0:00:30]} 6. Nc3 {[%emt 0:00:30]} Bb7 {[%emt 0:00:30]} 7. Be2 {[%emt 0:00:30]} Qc7 {[%emt 0:00:30]} 8. O-O {[%emt 0:00:30]} Nf6 {[%emt 0:00:30]} 9. Qd3 {[%emt 0:00:30]} d6 {[%emt 0:00:30]} 10. f4 {[%emt 0:00:30]} Nbd7 {[%emt 0:00:30]} 11. b4 {[%emt 0:00:30]} Be7 {[%emt 0:00:30]} 12. Bb2 {[%emt 0:00:30]} g6 {[%emt 0:00:30]} 13. Rac1 {[%emt 0:00:30]} Rc8 {[%emt 0:00:30]} 14. Nd5 {[%emt 0:00:30]} Qd8 {[%emt 0:00:30]} 15. Nxe7 Qxe7 16. Bf3 e5 {[%emt 0:01:00]} 17. Ne2 {[%emt 0:01:30]} O-O {[%emt 0:00:30]} 18. Rfd1 {[%emt 0:00:30]} Rc6 {[%emt 0:00:30]} 19. f5 {[%emt 0:00:30]} Rfc8 {[%emt 0:00:30]} 20. Ng3 {[%emt 0:00:30]} h5 {[%emt 0:00:30]} 21. fxg6 {[%emt 0:00:30]} fxg6 {[%emt 0:00:30]} 22. Nf1 {[%emt 0:00:30]} Nf8 {[%emt 0:00:30]} 23. Ne3 {[%emt 0:00:30]} Ne6 {[%emt 0:00:30]} 24. Nd5 Qg7 {[%emt 0:00:30]} 25. a4 {[%emt 0:01:00]} Nd7 {[%emt 0:00:30]} 26. b5 {[%emt 0:00:30]} Rc5 {[%emt 0:00:30]} 27. Ne3 {[%emt 0:00:30]} Nd4 {[%emt 0:00:30]} 28. Bxd4 {[%emt 0:00:30]} exd4 29. Qxd4 Ne5 {[%emt 0:01:00]} 30. Qxd6 {[%emt 0:01:00]} axb5 {[%emt 0:00:30]} 31. axb5 {[%emt 0:00:30]} Qh6 {[%emt 0:00:30]} 32. Nf1 {[%emt 0:00:30]} Qg5 {[%emt 0:00:30]} 33. Kh1 {[%emt 0:00:30]} h4 {[%emt 0:00:30]} 34. Qxb6 {[%emt 0:00:30]} Ba8 {[%emt 0:00:30]} 35. Ra1 {[%emt 0:00:30]} Rxc4 {[%emt 0:00:30]} 36. Qe3 {[%emt 0:00:30]} Qxe3 {[%emt 0:00:30]} 37. Nxe3 {[%emt 0:00:30]} Rb4 {[%emt 0:00:30]} 38. Rab1 {[%emt 0:00:30]} Rxb1 39. Rxb1 Rf8 {[%emt 0:01:00]} 40. Rf1 {[%emt 0:01:00]} Rb8 {[%emt 0:00:30]} 41. Be2 {[%emt 0:30:30]} Bxe4 {[%emt 0:30:30]} 42. h3 {[%emt 0:00:30]} Nd3 {[%emt 0:00:30]} 43. Ng4 {[%emt 0:00:30]} Kg7 {[%emt 0:00:30]} 44. Nf2 {[%emt 0:00:30]} Nxf2+ 45. Rxf2 {[%emt 0:00:30]} Re8 {[%emt 0:01:00]} 46. Bc4 {[%emt 0:00:30]} Rc8 {[%emt 0:00:30]} 47. Be6 {[%emt 0:00:30]} Rc1+ {[%emt 0:00:30]} 48. Kh2 {[%emt 0:00:30]} Rb1 {[%emt 0:00:30]} 49. Bc4 {[%emt 0:00:30]} g5 {[%emt 0:00:30]} 50. Re2 {[%emt 0:00:30]} Ba8 {[%emt 0:00:30]} 51. Re8 {[%emt 0:00:30]} Rb4 {[%emt 0:00:30]} 52. Bd3 {[%emt 0:00:30]} Rb3 {[%emt 0:00:30]} 53. Bc4 {[%emt 0:00:30]} Rb4 {[%emt 0:00:30]} 54. Bd3 {[%emt 0:00:30]} Rb3 {[%emt 0:00:30]} 55. Rg8+ {[%emt 0:00:30]} Kxg8 {[%emt 0:00:30]} 56. Bc4+ Kf8 {[%emt 0:00:30]} 57. Bxb3 Ke7 {[%emt 0:00:30]} 58. Bd1 {[%emt 0:01:30]} Kd6 {[%emt 0:00:30]} 59. Kg1 {[%emt 0:00:30]} Kc5 {[%emt 0:00:30]} 60. Be2 {[%emt 0:00:30]} Bd5 {[%emt 0:00:30]} 61. Kf2 {[%emt 0:00:30]} Bf7 {[%emt 0:00:30]} 62. Ke3 {[%emt 0:00:30]} Bg6 {[%emt 0:00:30]} 63. Bd3 {[%emt 0:00:30]} Bf7 {[%emt 0:00:30]} 64. Bf1 {[%emt 0:00:30]} Bd5 {[%emt 0:00:30]} 65. b6 {[%emt 0:00:30]} Bb7 {[%emt 0:00:30]} 66. Kd3 {[%emt 0:00:30]} Bc6 {[%emt 0:00:30]} 67. Kc3 {[%emt 0:00:30]} Bb7 {[%emt 0:00:30]} 68. Kd3 {[%emt 0:00:30]} Bc6 {[%emt 0:00:30]} 69. Ke3 {[%emt 0:00:30]} Bb7 {[%emt 0:00:30]} 70. Be2 {[%emt 0:00:30]} Bxg2 {[%emt 0:00:30]} 71. Bf3 {[%emt 0:00:30]} Bxf3 {[%emt 0:00:30]} 72. Kxf3 {[%emt 0:00:30]} Kxb6 {[%emt 0:00:30]} 73. Kg4 {[%emt 0:00:30]} Kc6 {[%emt 0:00:30]} 74. Kxg5 {[%emt 0:00:30]} 1/2-1/2

[Event "2nd Serbian League-Vojvodina 2023"]
[Site "Novi Sad"]
[Date "2023.11.03"]
[Round "2.14"]
[White "Jocev, Milan"]
[Black "Lalic, Bogdan"]
[Result "1/2-1/2"]
[ECO "D02"]
[WhiteElo "2338"]
[BlackElo "2345"]
[Annotator "RC"]
[PlyCount "26"]
[EventDate "2023.10.22"]
[EventType "team-tourn"]
[EventCountry "SRB"]
[SourceTitle "playchess.com"]
[Source "ChessBase"]
[SourceQuality "1"]
[TimeControl "40/5400+30:1800+30"]

1. d4 {[%emt 1:31:00]} d5 {[%emt 1:31:00]} 2. Bf4 {[%emt 0:00:00]} c5 3. e3 {[%emt 0:01:00]} Nc6 {[%emt 0:01:00]} 4. c3 {[%emt 0:00:30]} Nf6 {[%emt 0:00:30]} 5. Nd2 {[%emt 0:00:30]} e6 {[%emt 0:00:30]} 6. Ngf3 {[%emt 0:00:30]} cxd4 {[%emt 0:00:30]} 7. exd4 {[%emt 0:00:30]} Nh5 {[%emt 0:00:30]} 8. Be3 {[%emt 0:00:30]} Bd6 {[%emt 0:00:30]} 9. Bd3 {[%emt 0:00:30]} Nf4 {[%emt 0:00:30]} 10. Bxf4 {[%emt 0:00:30]} Bxf4 {[%emt 0:00:30]} 11. O-O {[%emt 0:00:30]} O-O {[%emt 0:00:30]} 12. Re1 {[%emt 0:00:30]} g6 {[%emt 0:00:30]} 13. Bf1 {[%emt 0:00:30]} Qb6 {[%emt 0:00:00]} 1/2-1/2

[Event "2nd Serbian League-Vojvodina 2023"]
[Site "Novi Sad"]
[Date "2023.11.03"]
[Round "2.15"]
[White "Grujic, Zoran"]
[Black "Stankovic, Milos M"]
[Result "1/2-1/2"]
[ECO "A88"]
[WhiteElo "2315"]
[BlackElo "2249"]
[Annotator "RC"]
[PlyCount "65"]
[EventDate "2023.10.22"]
[EventType "team-tourn"]
[EventCountry "SRB"]
[SourceTitle "playchess.com"]
[Source "ChessBase"]
[SourceQuality "1"]
[TimeControl "40/5400+30:1800+30"]

1. Nf3 {[%emt 1:31:00]} g6 {[%emt 1:31:00]} 2. c4 {[%emt 0:00:30]} f5 {[%emt 0:00:30]} 3. d4 {[%emt 0:00:30]} Nf6 {[%emt 0:00:30]} 4. g3 {[%emt 0:00:30]} Bg7 {[%emt 0:00:30]} 5. Bg2 {[%emt 0:00:30]} O-O {[%emt 0:00:30]} 6. O-O {[%emt 0:00:30]} d6 {[%emt 0:00:30]} 7. Nc3 {[%emt 0:00:30]} Na6 {[%emt 0:00:30]} 8. b3 {[%emt 0:00:30]} c6 {[%emt 0:00:30]} 9. Bb2 {[%emt 0:00:00]} Qc7 {[%emt 0:00:30]} 10. d5 {[%emt 0:00:00]} e5 {[%emt 0:00:00]} 11. dxe6 {[%emt 0:00:00]} Bxe6 {[%emt 0:00:00]} 12. Nd4 {[%emt 0:00:00]} Bf7 {[%emt 0:00:00]} 13. e3 {[%emt 0:00:00]} Rad8 {[%emt 0:00:00]} 14. Rc1 {[%emt 0:00:00]} Nc5 {[%emt 0:00:00]} 15. Qe2 {[%emt 0:00:00]} Qe7 {[%emt 0:00:00]} 16. Rfd1 {[%emt 0:00:00]} Nfe4 {[%emt 0:00:00]} 17. b4 {[%emt 0:00:00]} Nxc3 {[%emt 0:00:00]} 18. Bxc3 {[%emt 0:00:00]} Ne4 {[%emt 0:00:00]} 19. Bb2 {[%emt 0:00:00]} d5 {[%emt 0:00:00]} 20. c5 {[%emt 0:00:00]} a6 {[%emt 0:00:00]} 21. Qc2 {[%emt 0:00:00]} Be8 {[%emt 0:00:00]} 22. Re1 {[%emt 0:00:00]} h5 {[%emt 0:00:00]} 23. h4 {[%emt 0:00:00]} Be5 {[%emt 0:00:00]} 24. Nf3 {[%emt 0:00:00]} Bc7 {[%emt 0:00:00]} 25. Qd3 {[%emt 0:00:00]} Kh7 {[%emt 0:00:00]} 26. Re2 {[%emt 0:00:00]} Bd7 {[%emt 0:00:00]} 27. a3 {[%emt 0:00:00]} Rde8 {[%emt 0:00:00]} 28. Qd4 {[%emt 0:00:00]} Rg8 {[%emt 0:00:00]} 29. Rcc2 {[%emt 0:00:00]} Bb8 {[%emt 0:00:00]} 30. Re1 {[%emt 0:00:00]} Bc7 {[%emt 0:00:00]} 31. Ree2 {[%emt 0:00:00]} Bb8 {[%emt 0:00:00]} 32. Re1 {[%emt 0:00:00]} Bc7 {[%emt 0:00:00]} 33. Ree2 {[%emt 0:12:30]} 1/2-1/2

[Event "2nd Serbian League-Vojvodina 2023"]
[Site "Novi Sad"]
[Date "2023.11.03"]
[Round "2.16"]
[White "Milekic, Daniel"]
[Black "Dragojlovic, Andjelko"]
[Result "1/2-1/2"]
[ECO "A42"]
[WhiteElo "2236"]
[BlackElo "2108"]
[Annotator "RC"]
[PlyCount "51"]
[EventDate "2023.10.22"]
[EventType "team-tourn"]
[EventCountry "SRB"]
[SourceTitle "playchess.com"]
[Source "ChessBase"]
[SourceQuality "1"]
[TimeControl "40/5400+30:1800+30"]

1. d4 {[%emt 1:31:00]} g6 {[%emt 1:31:00]} 2. e4 {[%emt 0:00:30]} Bg7 {[%emt 0:00:30]} 3. c4 {[%emt 0:00:30]} d6 {[%emt 0:00:30]} 4. Nc3 {[%emt 0:00:30]} Nc6 {[%emt 0:00:30]} 5. Be3 {[%emt 0:00:30]} e5 {[%emt 0:00:30]} 6. Nge2 {[%emt 0:00:30]} exd4 {[%emt 0:00:30]} 7. Nxd4 Nge7 {[%emt 0:00:30]} 8. h4 {[%emt 0:01:00]} h5 {[%emt 0:00:30]} 9. Qd2 {[%emt 0:00:30]} O-O {[%emt 0:00:30]} 10. O-O-O {[%emt 0:00:30]} Nxd4 {[%emt 0:00:30]} 11. Bxd4 {[%emt 0:00:30]} Bxd4 {[%emt 0:00:30]} 12. Qxd4 {[%emt 0:00:30]} Nc6 {[%emt 0:00:30]} 13. Qe3 {[%emt 0:00:30]} Be6 {[%emt 0:00:30]} 14. f4 {[%emt 0:00:00]} Re8 15. Be2 {[%emt 0:01:00]} f5 {[%emt 0:01:00]} 16. e5 {[%emt 0:00:30]} Kh7 {[%emt 0:00:30]} 17. Qf2 {[%emt 0:00:30]} a6 {[%emt 0:00:30]} 18. Rd2 {[%emt 0:00:30]} Qe7 {[%emt 0:00:30]} 19. exd6 cxd6 {[%emt 0:00:30]} 20. Rhd1 {[%emt 0:01:00]} Rad8 {[%emt 0:00:30]} 21. Kb1 {[%emt 0:00:30]} Bf7 {[%emt 0:00:30]} 22. Qg3 {[%emt 0:00:30]} Na5 {[%emt 0:00:30]} 23. Rd4 {[%emt 0:00:30]} Nc6 {[%emt 0:00:30]} 24. R4d2 {[%emt 0:00:00]} Na5 25. Rd4 {[%emt 0:01:00]} Nc6 {[%emt 0:01:00]} 26. R4d2 {[%emt 0:00:30]} 1/2-1/2